bitfinex/quotes_ETHUSD_20250923
["timestamp","ask_amount","ask_price","bid_price","bid_amount"]
[1758610852725,8.89005968,4211.3,4210.9,0.004]
[1758610853025,9.02272552,4211.3,4210.9,0.004]
[1758610854287,9.53217468,4211.3,4210.9,0.004]
[1758610855526,16.59217468,4211.3,4210.9,0.004]
[1758610856575,16.45950884,4211.3,4210.9,0.004]
[1758610856743,27.16709251,4211.3,4210.9,0.004]
[1758610859427,6.16662006,4211.2,4210.9,0.004]
[1758610859630,7.76567234,4211.2,4210.9,0.004]
[1758610859808,8.46457234,4211.2,4210.9,0.004]
[1758610860008,7.76567234,4211.2,4210.9,0.004]
[1758610860213,8.46457234,4211.2,4210.9,0.004]
[1758610860428,2.37484563,4210.8,4210.7,1e-08]
[1758610860736,17.09553956,4210.8,4210.7,1e-08]
[1758610860934,17.60498872,4210.8,4210.7,1e-08]
[1758610861533,17.85298872,4210.8,4210.7,1e-08]
[1758610861744,18.30388872,4210.8,4210.7,1e-08]
[1758610861923,18.92125997,4210.8,4210.7,1e-08]
[1758610862731,18.22235997,4210.8,4210.7,1e-08]
[1758610863081,8.34639791,4210.8,4210.7,1e-08]
[1758610864364,7.64749791,4210.8,4210.7,1e-08]
[1758610864567,6.85549791,4210.8,4210.7,1e-08]
[1758610864753,3.23812666,4210.8,4210.7,1e-08]
[1758610864955,2.7286775,4210.8,4210.7,1e-08]
[1758610865131,2.7286775,4210.8,4210.7,0.15610001]
[1758610865132,3.47223187,4210.8,4210.7,0.15610001]
[1758610865338,0.86606052,4210.8,4210.7,0.15610001]
[1758610865669,0.35383187,4210.8,4210.7,0.15610001]
[1758610865852,0.35570435,4211.2,4210.7,0.42104154]
[1758610866054,0.1194,4211.3,4210.8,0.1561]
[1758610866255,0.1194,4211.3,4210.9,0.0203]
[1758610866488,0.1194,4211.3,4211.0,0.1358]
[1758610866632,0.35568387,4211.2,4210.7,1e-08]
[1758610866833,0.35568387,4211.1,4210.8,0.0203]
[1758610867051,0.1194,4211.3,4210.8,0.0203]
[1758610867259,0.1194,4211.3,4210.9,0.1358]
[1758610867463,0.1194,4211.3,4210.7,1e-08]
[1758610867662,0.1194,4211.3,4211.0,0.1561]
[1758610867844,2.49396724,4211.3,4211.1,0.1561]
[1758610868077,2.37468138,4211.1,4210.7,1e-08]
[1758610868259,0.793,4211.3,4210.7,1e-08]
[1758610868459,5.49308323,4211.1,4210.7,1e-08]
[1758610868684,2.37484563,4210.8,4210.7,1e-08]
[1758610868873,6.6408148,4210.8,4210.7,1e-08]
[1758610869073,7.15289916,4210.8,4210.7,1e-08]
[1758610869469,7.85179916,4210.8,4210.7,1e-08]
[1758610869766,8.87445545,4210.8,4210.7,1e-08]
[1758610870066,8.17555545,4210.8,4210.7,1e-08]
[1758610870267,8.17555776,4210.8,4210.7,1e-08]
[1758610871601,8.87445776,4210.8,4210.7,1e-08]
[1758610871788,9.5145661,4210.8,4210.7,1e-08]
[1758610874915,8.8156661,4210.8,4210.7,1e-08]
[1758610875771,8.81567643,4210.8,4210.7,1e-08]
[1758610876167,8.17556809,4210.8,4210.7,1e-08]
[1758610877789,8.17556809,4210.8,4210.7,0.02030001]
[1758610877790,7.1529118,4210.8,4210.7,0.02030001]
[1758610878129,7.1529118,4210.8,4210.7,1e-08]
[1758610878409,7.1529118,4210.8,4210.7,0.02030001]
[1758610878612,6.64082513,4210.8,4210.7,0.02030001]
[1758610879506,6.64082513,4210.8,4210.7,1e-08]
[1758610880016,7.15284034,4210.8,4210.7,1e-08]
[1758610880184,8.10559827,4210.8,4210.7,1e-08]
[1758610880384,7.15284034,4210.8,4210.7,1e-08]
[1758610880589,6.64082513,4210.8,4210.7,1e-08]
[1758610880799,3.4739795,4210.8,4210.7,1e-08]
[1758610881398,5.84882513,4210.8,4210.7,1e-08]
[1758610882412,6.3609099,4210.8,4210.7,1e-08]
[1758610882713,7.46527428,4210.8,4210.7,1e-08]
[1758610882915,7.93837428,4210.8,4210.7,1e-08]
[1758610883118,8.73037428,4210.8,4210.7,1e-08]
[1758610883712,9.37048262,4210.8,4210.7,1e-08]
[1758610883917,9.58263472,4210.8,4210.7,1e-08]
[1758610885617,8.73037428,4210.8,4210.7,1e-08]
[1758610886112,9.58263472,4210.8,4210.7,1e-08]
[1758610887320,8.73137428,4210.8,4210.7,1e-08]
[1758610888301,15.79137428,4210.8,4210.7,1e-08]
[1758610888698,15.56914392,4210.8,4210.7,1e-08]
[1758610888904,15.79135312,4210.8,4210.7,1e-08]
[1758610890594,16.64361356,4210.8,4210.7,1e-08]
[1758610891429,15.79135312,4210.8,4210.7,1e-08]
[1758610892524,15.08745312,4210.8,4210.7,1e-08]
[1758610892898,3.16729691,4210.0,4209.9,0.14210001]
[1758610893143,6.52285525,4210.0,4209.9,0.14210001]
[1758610893642,6.52285525,4210.0,4209.9,0.0203]
[1758610893841,5.37535333,4209.9,4209.6,0.0203]
[1758610894056,5.73091167,4209.9,4209.6,0.0203]
[1758610895541,5.73091167,4209.9,4209.4,0.1218]
[1758610895762,7.41273253,4209.9,4208.1,0.02]
[1758610895969,7.92464597,4209.9,4209.1,0.0403]
[1758610896268,7.92369602,4209.9,4209.1,0.02]
[1758610896627,8.15449602,4209.9,4209.1,0.02]
[1758610897139,7.92369602,4209.9,4209.1,0.02]
[1758610897323,7.92369602,4209.9,4209.1,0.0403]
[1758610898253,7.03387516,4209.9,4209.6,0.0203]
[1758610898657,6.24187516,4209.9,4209.6,0.0203]
[1758610899018,6.24187516,4209.9,4209.5,0.1218]
[1758610899236,6.24192482,4209.9,4209.3,0.0203]
[1758610899422,7.03392482,4209.9,4209.2,0.1218]
[1758610900242,7.03392482,4209.9,4209.2,0.1421]
[1758610900764,7.03392482,4209.9,4209.1,0.02]
[1758610901362,7.03392482,4209.9,4209.1,0.0403]
[1758610901564,7.73782482,4209.9,4209.1,0.0403]
[1758610901763,9.28611744,4209.9,4209.1,0.0403]
[1758610902125,8.81301744,4209.9,4209.1,0.0403]
[1758610902438,8.58221744,4209.9,4209.1,0.0403]
[1758610904388,8.81301744,4209.9,4209.1,0.0403]
[1758610904563,8.58221744,4209.9,4209.1,0.0403]
[1758610904743,8.58221744,4209.9,4209.1,0.1621]
[1758610905169,8.58221744,4209.9,4209.1,0.1418]
[1758610905372,8.58226523,4209.9,4209.2,0.0203]
[1758610906071,8.58226523,4209.9,4209.3,0.004]
[1758610906783,8.81836523,4209.9,4209.3,0.004]
[1758610906959,19.84552729,4209.9,4209.3,0.004]
[1758610907744,8.58226523,4209.9,4209.3,0.004]
[1758610910400,8.58226523,4209.9,4209.4,0.0203]
[1758610910574,6.24197261,4209.9,4209.3,0.004]
[1758610910758,0.86756923,4209.9,4209.8,0.1461]
[1758610911080,0.35565579,4209.9,4209.8,0.1461]
[1758610911584,3.35565579,4209.9,4209.8,0.1461]
[1758610911963,2.73100912,4209.9,4209.8,0.0243]
[1758610912285,0.35565579,4209.9,4209.8,0.1461]
[1758610912779,5.73100912,4209.9,4209.8,0.004]
[1758610913163,6.24383919,4209.9,4209.8,0.004]
[1758610913683,3.86848586,4209.9,4209.8,0.004]
[1758610913882,6.24383919,4209.9,4209.8,0.0243]
[1758610914182,3.86848586,4209.9,4209.8,0.004]
[1758610915054,3.86848586,4209.9,4209.8,0.1461]
[1758610916095,0.35565579,4209.9,4209.8,0.2645]
[1758610916367,0.22228487,4209.9,4209.8,0.52850593]
[1758610916600,0.22228487,4209.9,4209.8,2.92766977]
[1758610917199,0.13354396,4210.5,4209.9,2.37531696]
[1758610917407,0.35602343,4210.4,4210.2,0.1184]
[1758610917617,0.22247947,4210.3,4210.0,2.39904181]
[1758610917899,0.22247947,4210.2,4210.1,2.61554467]
[1758610918100,0.001,4210.8,4210.1,0.24030418]
[1758610918314,0.001,4210.8,4210.2,0.1421]
[1758610918514,0.001,4210.8,4210.7,0.1184]
[1758610918883,0.001,4210.8,4210.7,2.49330203]
[1758610919078,0.001,4210.8,4210.7,0.2605]
[1758610919297,0.001,4210.8,4210.7,2.63540203]
[1758610919499,0.001,4210.8,4210.7,0.76154676]
[1758610920218,0.001,4210.8,4210.7,3.13644879]
[1758610920781,0.001,4210.8,4210.7,0.61944676]
[1758610921031,0.91154712,4210.8,4210.7,0.1184]
[1758610921186,2.37493575,4210.7,4209.8,2.37935626]
[1758610921388,0.22211921,4210.6,4210.3,0.1184]
[1758610921586,0.001,4210.8,4210.3,0.1184]
[1758610921781,0.001,4210.8,4210.3,0.1387]
[1758610922020,0.001,4210.8,4210.3,0.1184]
[1758610922523,2.37502964,4210.5,4210.3,0.1184]
[1758610922822,3.28547147,4210.4,4210.3,0.1184]
[1758610922994,2.11968948,4210.4,4209.8,0.004]
[1758610923199,5.59712788,4210.3,4209.9,0.1184]
[1758610923405,2.3752874,4210.1,4209.9,0.1184]
[1758610923609,0.22200022,4210.0,4209.9,0.1184]
[1758610923805,0.6884,4210.2,4209.9,0.1184]
[1758610924130,0.22200902,4210.1,4209.9,0.1184]
[1758610924352,3.06359609,4210.2,4209.9,0.1184]
[1758610924631,2.5972579,4210.1,4209.9,0.1184]
[1758610924806,2.37525467,4210.1,4209.9,0.1184]
[1758610924998,0.6884,4210.2,4209.9,0.1184]
[1758610925192,0.22198685,4210.1,4209.9,0.1184]
[1758610925418,2.37524098,4210.1,4209.9,0.1184]
[1758610925594,0.2361,4210.2,4209.9,0.1184]
[1758610925792,0.22199587,4210.1,4209.9,0.1184]
[1758610926021,2.61131338,4210.2,4209.9,0.1184]
[1758610926221,0.22198696,4210.1,4209.9,0.1184]
[1758610926414,2.61131338,4210.2,4209.9,0.1184]
[1758610926607,0.22199706,4210.1,4209.9,0.1184]
[1758610926805,2.37525625,4210.1,4209.9,0.1184]
[1758610927042,5.59729398,4210.0,4209.9,0.1184]
[1758610927203,6.28569398,4210.0,4209.9,0.1184]
[1758610927403,6.28569398,4210.0,4209.8,0.004]
[1758610927404,2.37535333,4209.9,4209.8,0.004]
[1758610927629,6.0496504,4209.9,4209.8,0.004]
[1758610927898,6.41896614,4209.9,4209.8,0.004]
[1758610928098,3.91039707,4209.9,4209.8,0.004]
[1758610928833,3.91043243,4209.9,4209.8,0.004]
[1758610929129,4.58545928,4209.9,4209.8,0.004]
[1758610929329,6.96081261,4209.9,4209.8,0.004]
[1758610930908,6.27241261,4209.9,4209.8,0.004]
[1758610931438,7.09406113,4209.9,4209.8,0.004]
[1758610932504,4.7187078,4209.9,4209.8,0.004]
[1758610932737,6.40566113,4209.9,4209.8,0.004]
[1758610933816,5.73063428,4209.9,4209.8,0.004]
[1758610934030,5.7306476,4209.9,4209.8,0.004]
[1758610934231,5.59738576,4209.9,4209.8,0.004]
[1758610934814,3.22203243,4209.9,4209.8,0.004]
[1758610935018,5.59738576,4209.9,4209.8,0.004]
[1758610935823,4.04721627,4209.9,4209.8,0.004]
[1758610936018,3.35531627,4209.9,4209.8,0.004]
[1758610936342,5.7306696,4209.9,4209.8,0.004]
[1758610936839,5.9645696,4209.9,4209.8,0.004]
[1758610937051,6.4071696,4209.9,4209.8,0.004]
[1758610937814,7.29725162,4209.9,4209.8,0.004]
[1758610939853,7.80914555,4209.9,4209.8,0.004]
[1758610940055,7.29725162,4209.9,4209.8,0.004]
[1758610940219,7.29825162,4209.9,4209.8,0.004]
[1758610940815,3.35631627,4209.9,4209.8,0.004]
[1758610941230,0.22303243,4209.9,4209.8,0.1461]
[1758610941431,0.22303243,4209.9,4209.8,0.16985409]
[1758610941634,0.001,4209.9,4209.8,0.16985409]
[1758610942357,0.001,4209.9,4209.8,2.54526384]
[1758610942561,0.001,4209.9,4209.8,3.01358788]
[1758610942760,0.001,4209.9,4209.8,0.51637813]
[1758610943058,0.001,4209.9,4209.8,0.004]
[1758610945463,0.001,4209.9,4209.8,0.0243]
[1758610945825,0.001,4209.9,4209.8,2.52150975]
[1758610946924,0.001,4209.9,4209.8,2.54526384]
[1758610947661,0.001,4209.9,4209.8,2.52150975]
[1758610947846,0.001,4209.9,4209.8,3.01120991]
[1758610948322,0.001,4209.9,4209.8,0.49370016]
[1758610948527,0.001,4209.9,4209.8,0.004]
[1758610949556,0.22336253,4209.9,4209.8,0.004]
[1758610950533,0.001,4209.9,4209.8,0.004]
[1758610950932,0.22337038,4209.9,4209.8,0.004]
[1758610951130,0.22337103,4209.9,4209.8,0.004]
[1758610951531,3.53509376,4209.9,4209.8,0.004]
[1758610951736,3.66855276,4209.9,4209.8,0.004]
[1758610952427,4.18117412,4209.9,4209.8,0.004]
[1758610952632,3.66855276,4209.9,4209.8,0.004]
[1758610952959,4.18117412,4209.9,4209.8,0.004]
[1758610953270,3.66855276,4209.9,4209.8,0.004]
[1758610953469,4.18117412,4209.9,4209.8,0.004]
[1758610953656,3.66868955,4209.9,4209.8,0.004]
[1758610953984,4.18131091,4209.9,4209.8,0.004]
[1758610954269,3.66868955,4209.9,4209.8,0.004]
[1758610954479,7.18131091,4209.9,4209.8,0.004]
[1758610954689,7.97331091,4209.9,4209.8,0.004]
[1758610954871,8.6129148,4209.9,4209.8,0.004]
[1758610955185,7.97331091,4209.9,4209.8,0.004]
[1758610957876,7.83985191,4209.9,4209.8,0.004]
[1758610958171,7.97329962,4209.9,4209.8,0.004]
[1758610961888,7.97302241,4209.9,4209.8,0.004]
[1758610963549,8.6126263,4209.9,4209.8,0.004]
[1758610963775,7.97302241,4209.9,4209.8,0.004]
[1758610965265,8.61290433,4209.9,4209.8,0.004]
[1758610965654,7.97302241,4209.9,4209.8,0.004]
[1758610965949,7.97295704,4209.9,4209.8,0.004]
[1758610966152,8.61274095,4209.9,4209.8,0.004]
[1758610966349,7.97295704,4209.9,4209.8,1e-08]
[1758610967459,8.82582734,4209.9,4209.8,1e-08]
[1758610967656,7.97295704,4209.9,4209.8,1e-08]
[1758610967858,8.82583284,4209.9,4209.8,1e-08]
[1758610968057,3.50445704,4209.9,4209.8,1e-08]
[1758610968277,0.35661295,4209.9,4209.8,1e-08]
[1758610968808,0.001,4209.9,4209.8,0.14210001]
[1758610969808,0.001,4209.9,4209.8,2.51750976]
[1758610970314,0.001,4209.9,4209.8,0.14210001]
[1758610970618,0.001,4209.9,4209.8,0.25175735]
[1758610970778,0.001,4209.9,4209.8,1e-08]
[1758610971222,0.001,4209.9,4209.8,0.14210001]
[1758610971374,0.001,4209.9,4209.8,2.51750976]
[1758610971578,0.001,4209.9,4209.8,2.39570976]
[1758610971802,0.001,4209.9,4209.8,0.14210001]
[1758610972003,0.001,4209.9,4209.8,0.25175658]
[1758610972207,0.001,4209.9,4209.8,0.27205658]
[1758610972416,0.001,4209.9,4209.8,0.39385658]
[1758610972585,0.001,4209.9,4209.8,0.25175658]
[1758610972790,0.001,4209.9,4209.8,1e-08]
[1758610974210,0.22299723,4209.9,4209.8,1e-08]
[1758610974600,3.05115056,4209.9,4209.8,1e-08]
[1758610974808,6.42247097,4209.9,4209.8,1e-08]
[1758610974993,8.18298536,4209.9,4209.8,1e-08]
[1758610975199,8.69452786,4209.9,4209.8,1e-08]
[1758610975914,8.24172786,4209.9,4209.8,1e-08]
[1758610976090,8.69452786,4209.9,4209.8,1e-08]
[1758610976418,8.81292786,4209.9,4209.8,1e-08]
[1758610980898,9.60492786,4209.9,4209.8,1e-08]
[1758610982399,8.81292786,4209.9,4209.8,1e-08]
[1758610983345,20.18369441,4209.9,4209.8,1e-08]
[1758610984053,20.82319499,4209.9,4209.8,1e-08]
[1758610987935,19.57839499,4209.9,4209.8,1e-08]
[1758610988140,19.34029499,4209.9,4209.8,1e-08]
[1758610988740,20.03119499,4209.9,4209.8,1e-08]
[1758610989047,19.39169441,4209.9,4209.8,1e-08]
[1758610989432,19.39207337,4209.9,4209.8,1e-08]
[1758610989617,20.18407337,4209.9,4209.8,1e-08]
[1758610990018,20.82357395,4209.9,4209.8,1e-08]
[1758610990216,5.37540975,4209.8,4209.3,0.004]
[1758610990550,14.37076655,4209.4,4209.3,0.004]
[1758610990716,17.61354113,4209.4,4209.3,0.004]
[1758610990914,18.30444113,4209.4,4209.3,0.004]
[1758610991557,3.8671391,4209.4,4209.3,0.004]
[1758610991760,3.3555966,4209.4,4209.3,0.2645]
[1758610991959,3.3555966,4209.4,4209.3,0.004]
[1758610992515,5.73123208,4209.4,4209.3,0.004]
[1758610992861,13.93436315,4209.4,4209.3,0.004]
[1758610993360,16.30999863,4209.4,4209.3,0.004]
[1758610993765,13.93436315,4209.4,4209.3,0.004]
[1758610994359,3.3555966,4209.4,4209.3,0.004]
[1758610994576,3.3555966,4209.4,4209.3,0.1461]
[1758610996869,3.3555966,4209.4,4209.3,0.0243]
[1758610997534,3.3555966,4209.4,4209.3,0.004]
[1758610998268,0.001,4209.9,4209.4,5.37563548]
[1758610998493,0.001,4210.4,4210.3,2.37512766]
[1758610998791,0.001,4211.3,4210.7,2.37490203]
[1758610998990,0.001,4211.3,4210.7,2.39865105]
[1758610999162,0.001,4211.3,4210.7,2.63391789]
[1758610999364,0.001,4211.3,4210.7,5.61016887]
[1758610999688,0.001,4211.3,4210.7,3.40868417]
[1758611003681,0.001,4211.3,4210.7,3.43243319]
[1758611003982,0.001,4211.3,4210.7,3.40868417]
[1758611004182,0.001,4211.3,4210.7,3.43243319]
[1758611004350,0.001,4211.3,4210.7,3.29233319]
[1758611004549,0.001,4211.3,4210.7,3.28888417]
[1758611004749,0.001,4211.3,4210.7,3.40868417]
[1758611005449,0.001,4211.3,4210.7,3.26858417]
[1758611006367,0.2396,4211.3,4210.7,3.26858417]
[1758611007193,0.2396,4211.3,4210.7,0.89368214]
[1758611007394,0.2396,4210.8,4210.7,0.09516684]
[1758611007560,0.6957,4210.8,4210.7,0.09516684]
[1758611007760,0.6957,4210.8,4210.2,2.37516664]
[1758611008296,0.6957,4210.8,4210.7,0.1184]
[1758611008790,0.001,4210.8,4210.7,0.1184]
[1758611014313,0.6957,4210.8,4210.7,0.1184]
[1758611015573,0.6957,4210.8,4209.8,0.71396188]
[1758611015809,0.6947,4210.7,4210.3,0.1184]
[1758611015980,2.37497319,4210.6,4210.3,0.1184]
[1758611016175,0.4561,4210.5,4210.3,0.1184]
[1758611016496,0.6947,4210.5,4210.3,0.1184]
[1758611016812,0.6947,4210.4,4210.3,0.1184]
[1758611017912,0.2386,4210.4,4210.3,0.1184]
[1758611019006,0.6947,4210.4,4210.3,0.1184]
[1758611022003,0.001,4210.8,4210.1,0.0203]
[1758611022208,3.4571,4210.8,4209.8,0.0203]
[1758611022514,2.61350203,4210.7,4209.8,2.37536031]
[1758611022717,2.61350203,4210.7,4209.9,2.85043197]
[1758611022918,3.06965843,4210.6,4209.1,0.735]
[1758611023109,2.37511352,4210.4,4209.3,2.37969131]
[1758611023429,0.6947,4210.5,4209.7,2.37545763]
[1758611023728,0.6947,4210.4,4209.7,2.37545763]
[1758611023920,0.2386,4210.3,4209.6,2.37552168]
[1758611024231,0.2386,4210.3,4209.7,0.47511572]
[1758611024727,0.2386,4210.3,4209.7,2.85057962]
[1758611024926,2.61373206,4210.3,4209.7,0.47511572]
[1758611025229,0.2386,4210.3,4209.6,2.37551539]
[1758611025731,0.2386,4210.3,4209.6,2.37551559]
[1758611026601,0.2386,4210.3,4209.3,0.0243]
[1758611026800,0.2386,4210.3,4209.4,2.37563548]
[1758611027001,0.2386,4210.3,4209.7,2.37545365]
[1758611027631,0.2386,4210.3,4209.6,2.37551083]
[1758611028438,0.2386,4210.3,4209.7,2.37541998]
[1758611028811,0.2398,4210.7,4209.8,0.02375409]
[1758611029145,10.57349623,4210.0,4209.3,0.004]
[1758611029643,0.6997,4209.9,4209.3,0.004]
[1758611029821,3.0,4209.8,4209.3,0.004]
[1758611030021,2.37550818,4209.7,4209.3,0.004]
[1758611030342,3.07517005,4209.7,4209.3,0.004]
[1758611030514,0.2398,4209.6,4209.3,0.004]
[1758611031037,2.83537656,4209.7,4209.3,0.004]
[1758611031242,0.2398,4209.6,4209.3,0.004]
[1758611032011,0.2398,4209.6,4209.5,0.1184]
[1758611033715,2.37537222,4209.9,4209.5,0.1184]
[1758611034117,3.07507222,4209.9,4209.5,0.1184]
[1758611034641,3.07513784,4209.8,4209.5,0.1184]
[1758611034840,2.37546618,4209.7,4209.5,0.1184]
[1758611035143,2.37552261,4209.6,4209.5,0.1184]
[1758611035518,3.29730933,4209.6,4209.5,0.1184]
[1758611035717,2.37563548,4209.4,4209.3,0.004]
[1758611036132,6.29742855,4209.4,4209.3,0.004]
[1758611036923,6.43068045,4209.4,4209.3,0.004]
[1758611037632,3.92179307,4209.4,4209.3,0.004]
[1758611037837,6.29742855,4209.4,4209.3,0.004]
[1758611038441,6.43066297,4209.4,4209.3,0.004]
[1758611038635,15.24778403,4209.4,4209.3,0.004]
[1758611041951,15.7450167,4209.4,4209.3,0.004]
[1758611043023,16.25659524,4209.4,4209.3,0.004]
[1758611052681,15.55689524,4209.4,4209.3,0.004]
[1758611052977,16.25659524,4209.4,4209.3,0.004]
[1758611053182,15.55689524,4209.4,4209.3,0.004]
[1758611053358,15.05966257,4209.4,4209.3,0.004]
[1758611053555,15.75936257,4209.4,4209.3,0.004]
[1758611053862,15.05966257,4209.4,4209.3,0.004]
[1758611054564,15.29946257,4209.4,4209.3,0.004]
[1758611054884,15.05966257,4209.4,4209.3,0.004]
[1758611055700,12.68402709,4209.4,4209.3,0.004]
[1758611055857,2.37518407,4210.2,4209.3,0.1441]
[1758611056199,0.35547533,4210.1,4209.4,0.29843699]
[1758611056501,0.001,4210.4,4209.3,0.1238]
[1758611056502,0.001,4210.4,4209.5,0.1401]
[1758611056704,0.001,4210.4,4210.0,2.375269]
[1758611056847,0.001,4210.4,4210.3,2.37512766]
[1758611057042,0.001,4210.4,4210.1,0.1401]
[1758611057246,0.001,4210.4,4209.5,2.47077464]
[1758611057447,0.001,4210.4,4210.3,2.37512766]
[1758611057647,0.001,4210.4,4210.2,0.1401]
[1758611057848,0.001,4210.4,4210.3,0.1401]
[1758611058988,0.001,4210.4,4210.3,2.51522766]
[1758611059282,0.001,4210.4,4209.6,2.37552261]
[1758611059484,8.81712106,4210.0,4209.7,0.24707182]
[1758611059689,0.4376,4209.9,4209.3,0.004]
[1758611059853,0.001,4210.4,4209.3,0.004]
[1758611060059,0.001,4210.4,4209.6,2.37547621]
[1758611060276,8.81712106,4210.3,4209.7,0.02375466]
[1758611060463,8.81712106,4210.3,4209.7,0.0203]
[1758611061466,2.37608864,4210.4,4209.3,0.004]
[1758611061467,8.81712106,4210.0,4209.3,0.004]
[1758611061667,8.81712106,4210.0,4209.3,2.37968868]
[1758611061867,8.81712106,4210.0,4209.3,0.004]
[1758611062086,8.81712106,4210.0,4209.4,2.37558892]
[1758611062798,8.81712106,4210.0,4209.3,0.004]
[1758611063154,8.81712106,4210.0,4209.3,2.37967936]
[1758611063670,8.81712106,4210.0,4209.3,0.004]
[1758611064071,0.2305,4209.9,4209.3,0.004]
[1758611064376,8.81712106,4209.4,4209.3,0.004]
[1758611064886,9.48522106,4209.4,4209.3,0.004]
[1758611065290,8.81712106,4209.4,4209.3,0.004]
[1758611065785,11.81712106,4209.7,4209.3,0.004]
[1758611065986,14.19260415,4209.7,4209.3,0.004]
[1758611066190,2.37553323,4209.6,4209.3,0.004]
[1758611066357,3.0,4209.5,4209.3,0.004]
[1758611066559,0.2305,4209.6,4209.3,0.004]
[1758611066763,3.2305,4209.6,4209.3,0.004]
[1758611066965,3.6681,4209.6,4209.3,0.004]
[1758611067360,3.2305,4209.6,4209.3,0.004]
[1758611067668,11.19275654,4209.4,4209.3,0.004]
[1758611068065,11.86085654,4209.4,4209.3,0.004]
[1758611068696,12.08284323,4209.4,4209.3,0.004]
[1758611068895,15.08284323,4209.4,4209.3,0.004]
[1758611069095,15.21603617,4209.4,4209.3,0.004]
[1758611069398,16.42129106,4209.4,4209.3,0.004]
[1758611069972,15.75319106,4209.4,4209.3,0.004]
[1758611070172,16.42129106,4209.4,4209.3,0.004]
[1758611070600,16.42130826,4209.4,4209.3,0.004]
[1758611071625,6.16769192,4209.3,4209.2,0.004]
[1758611071906,8.36943979,4209.3,4209.2,0.004]
[1758611072111,9.03753979,4209.3,4209.2,0.004]
[1758611075308,9.67712201,4209.3,4209.2,0.004]
[1758611075709,9.23952201,4209.3,4209.2,0.004]
[1758611075927,18.49424307,4209.3,4209.2,0.004]
[1758611076419,27.31136413,4209.3,4209.2,0.004]
[1758611077909,27.31136413,4209.3,4209.1,0.02]
[1758611077910,6.16774836,4209.2,4209.1,0.02]
[1758611078110,15.93933123,4209.2,4209.1,0.02]
[1758611078620,15.93933123,4209.2,4208.9,0.004]
[1758611078621,23.80210336,4209.0,4208.9,0.004]
[1758611078807,24.66884912,4209.0,4208.9,0.004]
[1758611079018,25.33658472,4209.0,4208.9,0.004]
[1758611081505,6.28631769,4208.9,4208.8,0.004]
[1758611081814,8.36930116,4208.9,4208.8,0.004]
[1758611082012,9.03740116,4208.9,4208.8,0.004]
[1758611082734,6.16797414,4208.8,4208.7,0.004]
[1758611083035,7.03405127,4208.8,4208.7,0.004]
[1758611083220,7.70215127,4208.8,4208.7,0.004]
[1758611083424,8.90740616,4208.8,4208.7,0.004]
[1758611083936,15.96735103,4208.8,4208.7,0.004]
[1758611089445,3.16814351,4208.5,4207.5,0.0203]
[1758611089654,15.33973764,4208.5,4207.5,0.0203]
[1758611089857,16.51508657,4208.5,4207.5,0.0203]
[1758611090038,17.73168868,4208.5,4207.5,0.0203]
[1758611090700,17.29938868,4208.5,4207.7,0.0203]
[1758611091030,17.73168868,4208.5,4207.7,0.0203]
[1758611092932,17.73168868,4208.5,4208.1,14.52]
[1758611093329,8.25076762,4208.5,4208.1,14.52]
[1758611093649,17.06788868,4208.5,4208.1,14.52]
[1758611094251,8.25076762,4208.5,4208.1,14.52]
[1758611094451,16.27588868,4208.5,4208.1,14.52]
[1758611095469,16.27616534,4208.5,4208.1,14.52]
[1758611095835,15.05956323,4208.5,4208.4,0.0243]
[1758611096867,15.05956323,4208.5,4208.4,0.1441]
[1758611096868,2.73089324,4208.5,4208.4,0.1441]
[1758611097234,5.73089324,4208.5,4208.4,0.1441]
[1758611097434,5.73089324,4208.5,4208.4,0.0243]
[1758611098171,5.73166983,4208.5,4208.4,0.004]
[1758611098376,6.24384931,4208.5,4208.4,0.004]
[1758611098674,6.24384931,4208.5,4208.4,14.504]
[1758611099462,6.02175048,4208.5,4208.4,14.504]
[1758611099859,5.509571,4208.5,4208.4,14.504]
[1758611100086,5.88851437,4208.5,4208.4,14.504]
[1758611100246,6.11098812,4208.5,4208.4,14.504]
[1758611100445,3.64585511,4208.5,4208.4,14.504]
[1758611100648,3.64585511,4208.5,4208.4,14.6441]
[1758611101054,3.51237086,4208.5,4208.4,14.6441]
[1758611101338,5.88851437,4208.5,4208.4,14.6441]
[1758611101538,5.88851437,4208.5,4208.4,14.504]
[1758611101945,6.02205411,4208.5,4208.4,14.504]
[1758611102366,6.02207015,4208.5,4208.4,14.504]
[1758611102671,5.88851437,4208.5,4208.4,14.504]
[1758611102882,6.24466309,4208.5,4208.4,14.504]
[1758611105443,6.24472331,4208.5,4208.4,14.504]
[1758611108586,6.90852331,4208.5,4208.4,0.004]
[1758611108879,8.47268874,4208.5,4208.4,0.004]
[1758611109061,8.24118874,4208.5,4208.4,0.004]
[1758611110282,8.47268874,4208.5,4208.4,0.004]
[1758611110454,8.24118874,4208.5,4208.4,0.004]
[1758611115053,6.24472331,4208.5,4208.4,0.004]
[1758611116188,6.59292331,4208.5,4208.4,0.004]
[1758611116389,7.06342331,4208.5,4208.4,0.004]
[1758611116766,7.05082331,4208.5,4208.4,0.004]
[1758611116972,7.84282331,4208.5,4208.4,0.004]
[1758611117167,10.86137576,4208.5,4208.4,0.004]
[1758611117802,10.86137576,4208.5,4206.7,0.1198]
[1758611117803,0.792,4208.3,4206.7,0.1198]
[1758611118090,12.96088992,4207.3,4207.1,0.1184]
[1758611118717,12.96088992,4207.3,4207.2,14.5]
[1758611119010,13.31707891,4207.3,4207.2,14.5]
[1758611119218,10.9402143,4207.3,4207.2,14.5]
[1758611119418,13.31703553,4207.3,4207.2,14.5]
[1758611119794,16.31703553,4207.3,4207.2,14.5]
[1758611121115,16.82985676,4207.3,4207.2,14.5]